Cogmind - Beta 11.1 @@@ ROGUE MODE // 2022.05.02 @ 02:11:40 Player: Olga Result: Self-destructed Performance ------------- Evolutions (1) 500 Regions Visited (2) 400 Robots Destroyed (2) 10 Value Destroyed (44) 44 Prototype IDs (0) 0 Alien Tech Used (0) 0 Bonus (200) 200 TOTAL SCORE: 1154 Bonus ------- Pacifist 200 Cogmind --------- Core Integrity 201/400 Matter 213/300 Energy 100/100 System Corruption 0% Temperature Cool (0) Movement Core (50) Location -9/Materials Parts ------- > --- POWER (1) -------- (None) > --- PROPULSION (2) --- (None) > --- UTILITY (4) ------ Structural Scanner > --- WEAPON (2) ------- Light Assault Rifle > --- INVENTORY (5) ---- (None) Peak State ------------ > --- POWER ------------ (None) > --- PROPULSION ------- VTOL Module > --- UTILITY ---------- Structural Scanner > --- WEAPON ----------- Assault Rifle Light Assault Rifle > --- INVENTORY -------- (None) [Rating: 5] Favorites ----------- Power Ion Engine Engine Ion Engine Propulsion VTOL Module Treads Light Treads Flight Unit VTOL Module Utility Structural Scanner Device Structural Scanner Weapon Assault Rifle Ballistic Gun Assault Rifle Build | -11 -10 -9 ------- Run | Scr Mat Mat Slots Evolved 2 | . . 2 Power . | . . . Propulsion . | . . . Utility 2 | . . 2 Weapon . | . . . Parts Attached 7 | 3 2 2 Power 1 | 1 . . Engine 1 | 1 . . Core . | . . . Reactor . | . . . Propulsion 2 | 1 . 1 Treads 1 | 1 . . Leg . | . . . Wheel . | . . . Hover . | . . . Flight 1 | . . 1 Utility 1 | . 1 . Device 1 | . 1 . Storage . | . . . Processor . | . . . Hackware . | . . . Protection . | . . . Artifact . | . . . Weapon 3 | 1 1 1 Energy Gun . | . . . Energy Cannon . | . . . Ballistic Gun 3 | 1 1 1 Ballistic Cannon . | . . . Launcher . | . . . Special Weapon . | . . . Impact Weapon . | . . . Slashing Weapon . | . . . Piercing Weapon . | . . . Special Melee Weapon . | . . . Unidentified Prototypes . | . . . Parts Lost 2 | . . 2 Power . | . . . Propulsion 1 | . . 1 Utility . | . . . Weapon 1 | . . 1 Highest Loss Streak 2 | . . 2 To Critical Strikes . | . . . Average Slot Usage (%) 24 | . 21 26 Flight 1 | . . 2 Device 8 | . 3 11 Ballistic Gun 14 | . 17 13 Naked Turns . | . . . Heaviest Build 4 | 2 3 4 Greatest Support 4 | 3 3 4 Greatest Overweight (x) . | . . . Average Overweight (x) . | . . . Largest Inventory Capacity 5 | 5 5 5 Average Capacity 5 | 5 5 5 Most Carried 4 | 4 1 1 Average Carried . | 2 . . Final Capacity 5 | 5 5 5 Final Carried 1 | . 1 . Class Distribution -------------------- 100% | Mutant Dominant Class ---------------- Mutant | -10/Materials Mutant | -9/Materials Resources | -11 -10 -9 ----------- Run | Scr Mat Mat Matter Collected 193 | 193 . . Remotely . | . . . Salvage Created 40 | . . 40 Parts 4 | . . 4 Haulers Intercepted . | . . . Recyclers Shooed . | . . . Parts Field Recycled . | . . . Retrieved Matter . | . . . Parts Self-Destructed . | . . . Prevented . | . . . Kills | -11 -10 -9 ------- Run | Scr Mat Mat Combat Hostiles Destroyed 2 | . . 2 Guns 2 | . . 2 Classes Destroyed 2 | . . 2 Swarmer 1 | . . 1 Grunt 1 | . . 1 Best Kill Streak 2 | . . 2 Combat Bots Only 2 | . . 2 Max Kills in Single Turn 1 | . . 1 Gunslinging . | . . . Exploded . | . . . Melee . | . . . Uniques/NPCs Destroyed . | . . . Combat | -11 -10 -9 -------- Run | Scr Mat Mat Damage Taken 421 | . 21 400 Core 209 | . 10 199 Absorbed by Shields . | . . . Core Remaining (%) 98 | 100 96 . Volleys Fired 14 | . . 14 Largest 2 | . . 2 Hottest 40 | . . 40 Shots Fired 16 | . . 16 Gun 16 | . . 16 Cannon . | . . . Launcher . | . . . Special . | . . . Kinetic 16 | . . 16 Thermal . | . . . Explosive . | . . . Electromagnetic . | . . . Robot Hit Streak 7 | . . 7 Robot Miss Streak 3 | . . 3 Penetration Max . | . . . Secondary Targets . | . . . Shots Hit Robots 11 | . . 11 Core Hits 4 | . . 4 Critical Kills . | . . . Critical Parts Destroyed . | . . . Critical Strikes . | . . . Melee Attacks . | . . . Impact . | . . . Slashing . | . . . Piercing . | . . . Sneak Attacks . | . . . Combat Hostiles . | . . . Follow-up Attacks . | . . . Damage Inflicted 93 | . . 93 Guns 93 | . . 93 Cannons . | . . . Explosions . | . . . Melee . | . . . Ramming . | . . . Kinetic 93 | . . 93 Thermal . | . . . Explosive . | . . . Electromagnetic . | . . . Impact . | . . . Slashing . | . . . Piercing . | . . . Highest Corruption 3 | . 3 . Average Corruption 2 | . 2 . Corruption Purged . | . . . Corruption Blocked . | . . . Overload Shots . | . . . Overflow Damage . | . . . Projectiles . | . . . Explosions . | . . . Melee . | . . . Knockbacks . | . . . Impact . | . . . Kinetic . | . . . Secondary . | . . . Self-Inflicted Damage . | . . . Shots . | . . . Rammed . | . . . Targets Rammed . | . . . Kicked . | . . . Crushed . | . . . Highest Temperature . | . . . Average Temperature . | . . . Received Heat Transfer 93 | . 12 81 Siege Activations . | . . . Robots Corrupted . | . . . Combat Hostiles . | . . . Parts Fried . | . . . Impact Corruptions . | . . . Robots Melted . | . . . Combat Hostiles . | . . . Parts Melted . | . . . Heat Transferred . | . . . Parts Sabotaged . | . . . Parts Stolen . | . . . Parts Stripped . | . . . Power Chain Reactions . | . . . Missiles Intercepted . | . . . Alert | -11 -10 -9 ------- Run | Scr Mat Mat Peak Influence 211 | . . 211 Initial . | . . . Average 51 | . . 74 Maximum Alert Level 1 | . . 1 Low Security (%) 98 | 100 100 98 Level 1 1 | . . 2 Level 2 . | . . . Level 3 . | . . . Level 4 . | . . . Level 5 . | . . . High Security . | . . . Max Security . | . . . Squads Dispatched 4 | . 1 3 Investigation 2 | . . 2 Extermination . | . . . Reinforcement 2 | . 1 1 Assault . | . . . Garrison . | . . . Intercept . | . . . Searches Triggered . | . . . Construction Impeded . | . . . Haulers Reinforced . | . . . Active Scanning Responses . | . . . Cargo Convoy Interrupts . | . . . Stealth | -11 -10 -9 --------- Run | Scr Mat Mat Distress Signals 1 | . . 1 Communications Jammed . | . . . Distress Signals . | . . . Times Spotted 24 | . 3 21 Peak Tracking Total 17 | . 2 17 Tactical Retreats 2 | . . 2 Traps | -11 -10 -9 ------- Run | Scr Mat Mat Traps Triggered 2 | . 2 . Indirectly . | . . . Trap Hack Attempts . | . . . Triggered . | . . . Disarmed . | . . . Reprogrammed . | . . . Reused . | . . . Traps Extracted . | . . . Installed . | . . . Triggered . | . . . Machines | -11 -10 -9 ---------- Run | Scr Mat Mat Machines Disabled . | . . . Max in Single Turn . | . . . Machines Sabotaged . | . . . Garrisons Compromised . | . . . Overloaded Fab Kills . | . . . Hacking | -11 -10 -9 --------- Run | Scr Mat Mat Machines Accessed 2 | . . 2 Terminals 2 | . . 2 Fabricators . | . . . Repair Stations . | . . . Recycling Units . | . . . Scanalyzers . | . . . Garrison Access . | . . . Total Hacks 8 | . . 8 Successful 4 | . . 4 Failed 4 | . . 4 Catastrophic 2 | . . 2 Database Lockouts . | . . . Manual 8 | . . 8 Terminals 8 | . . 8 Fabricators . | . . . Repair Stations . | . . . Recycling Units . | . . . Scanalyzers . | . . . Garrison Access . | . . . Terminal Hacks 2 | . . 2 Terminal Index 2 | . . 2 Fabricator Hacks . | . . . Repair Station Hacks . | . . . Recycling Unit Hacks . | . . . Scanalyzer . | . . . Garrison Access Hacks . | . . . Unauthorized Hacks 2 | . . 2 Terminals 2 | . . 2 Botnet 2 | . . 2 Fabricators . | . . . Repair Stations . | . . . Recycling Units . | . . . Scanalyzers . | . . . Garrison Access . | . . . Data Cores Recovered . | . . . Used . | . . . Hacking Detections 2 | . . 2 Full Trace Events 2 | . . 2 Feedback Events . | . . . Feedback Blocked . | . . . Robot Schematics Acquired . | . . . Robots Built . | . . . Authchips . | . . . Time . | . . . Total Robot Build Rating . | . . . Part Schematics Acquired . | . . . Parts Built . | . . . Authchips . | . . . Time . | . . . Total Part Build Rating . | . . . Parts Repaired . | . . . Time . | . . . Parts Recycled . | . . . Recycled Matter . | . . . Retrieved Matter . | . . . Retrieved Components . | . . . Parts Scanalyzed . | . . . Part Schematics Acquired . | . . . Parts Damaged . | . . . Bothacking | -11 -10 -9 ------------ Run | Scr Mat Mat Used RIF Installer . | . . . Robots Hacked . | . . . Non-combat . | . . . Combat . | . . . Robot Hacks Applied . | . . . Relay Couplers Released . | . . . Fabnet Peak Effective % . | . . . Robots Rewired . | . . . Allies Hacked . | . . . Hacks Repelled . | . . . Allies | -11 -10 -9 -------- Run | Scr Mat Mat Total Allies . | . . . Largest Group . | . . . Highest-Rated Group . | . . . Highest-Rated Ally . | . . . Total Orders . | . . . Ally Attacks . | . . . Total Damage . | . . . Kills . | . . . Allies Corrupted . | . . . Allies Melted . | . . . Intel | -11 -10 -9 ------- Run | Scr Mat Mat Robot Analysis Total . | . . . Derelict Logs Recovered . | . . . Drone Launches . | . . . Drone Recoveries . | . . . Exploration | -11 -10 -9 ------------- Run | Scr Mat Mat Turns Passed 144 | 5 39 100 Spaces Moved 225 | 1 70 154 Core 175 | 1 70 104 Treads . | . . . Legs . | . . . Wheels . | . . . Hover . | . . . Flight 50 | . . 50 Fastest Speed 35 | 50 50 35 Average Speed 46 | 50 50 45 Slowest Speed 50 | 50 50 50 Overloaded Moves . | . . . Propulsion Burnouts . | . . . Robots Hopped 1 | . . 1 Cave-ins Triggered . | . . . Exploration Rate (%) 16 | 2 18 29 Regions Visited 2 Branch Regions . Pre-discovered Areas . | . . . Known Exits Taken . | . . . Unknown Exits Taken 2 | 1 1 . Scrap Searched . | . . . Spaces Dug . | . . . Terrain Destroyed . | . . . Melee . | . . . Projectile . | . . . AOE . | . . . Terrain Rammed . | . . . Walls Destroyed . | . . . Machines Disabled . | . . . Actions | -11 -10 -9 --------- Run | Scr Mat Mat Total 248 | 7 72 169 Wait . | . . . Move 221 | . 69 152 Hop 1 | . . 1 Pick Up . | . . . Fast Attach 3 | . 2 1 Attach 4 | 3 . 1 Detach 1 | . 1 . Swap . | . . . Drop 4 | 4 . . Fire 14 | . . 14 Melee . | . . . Ram . | . . . Kick . | . . . Crush . | . . . Escape Stasis . | . . . Rewire . | . . . Trap . | . . . Miscellaneous . | . . . Route ------- -11/Scrapyard -10/Materials -9/Materials (discovered 1 exit: [*Min]) History --------- Turn | Location | Event 1 | -11/Scrapyard | Released all parts (6) 6 | -11/Scrapyard | Discovered new exit (range 0) 6 | -11/Scrapyard | Entered Materials 41 | -10/Materials | Discovered new exit (range 9) 45 | -10/Materials | Entered another Materials area 45 | -9/Materials | Evolved 2 slots: Utility x2 100 | -9/Materials | Discovered new exit (range 6) 145 | -9/Materials | Self-destructed Last Messages --------------- >>Trojan(Botnet) Trojan loaded successfully. Testing... Terminal linked with 1 system. Awaiting botnet instructions. >>Index(Terminals) Found 12 terminals. Downloaded coordinate data. 00108_ ALERT: Suspicious activity at Terminal M005. Dispatching Investigation squad. 00112_ W-16 Scout sends out distress signal. 00114_ Fusion Modulator explodes. 00114_ Y-45 Defender destroyed. 00114_ Terminal disabled. 00115_ R-06 Scavenger destroyed. 00116_ Assault Rifle destroyed. 00116_ VTOL Module destroyed. 00117_ R-06 Scavenger collects Lgt. Ion Engine. 00127_ S-10 Pest destroyed. 00143_ G-34 Mercenary destroyed. Map ----- +----------------------------------------------------+ | | | | | | | | | ?????????????????????????????????????????????????? | | ?????????????????????????????????????????????????? | | ?????????????????????????????????????????????????? | | ?????????????????????????????????????????????????? | | ?????????????????????????????????????????????????? | | ?????????????????????????????????????????????????? | | ?????????????????????????????????????????????????? | | ?????????????????????????????????????????????????? | | ?????????????????????????????????????????????????? | | ?????????????????????????????????????????????????? | | ?????????????????????????????????????????????????? | | ????????????? ##?????????????????????????????????? | | ????????????? # ?????????????????????????????????? | | ????????????? # ?????????????????????????????????? | | ????????????? #! ????????????????????????????????? | | ????????????? # "??????????????????????????????? | | ????????????? # ?????????????????????????????? | | ????????????? #"" ""???###T####??????????????????? | | ????????????? #"Y ""???########??????????????????? | | ????????????????" ""???## T ##??????????????????? | | ???????????????? ## o ##??####????????????? | | ????????????????###+#####@ ##??####????????????? | | ???????????????? # ssr! # ?? ????????????? | | ???????????????? # ####% # ?????????????? | | ???????????????? + ####! = # ?????????????? | | ???????????????? # ######### ????????????? | | ???????????????? # ?????????????? | | ???????????????? # ?????????????? | | ???????????????? # """""""???????????????? | | ???????????####### """""?????????????????? | | ???????????#########/## """"""??? ????????????? | | ???????????## # """"""" # ????"""??? | | ???????????### %! !*! [ """"""" # ????"""??? | | ???????????### * ! + ????"""??? | | ????????????## * ! = # ???? ??? | | ????????????## !% ###### ???? ??? | | ????????????## ######???? ?? | | ????????????## ##????????##+##?? | | ????????????## ##????????## ##?? | | ????????????## ##?######### ##?? | | ????????????### ############ ##?# | | ????????????##### ### ##### ## #### | | ?????????????########### ## #### | | ???????????????######### | | ??????????????????????## = ##### | | ???????????????????##### ## ###/## ##### | +----------------------------------------------------+ Best States ------------- Heat Dissipation 28 Energy Generation 5 Energy Capacity 100 Matter Stores 263 Matter Capacity 300 Sight Range 16 Terrain Scan Density 10 Evasion (%) 63 Item Schematics ----------------- None Robot Schematics ------------------ None Fabricated ------------ Nothing Alien Tech Used ----------------- None Achievements -------------- None Challenges ------------ None Game ------ Seed AssaultDataShockpuncher Manual? 0 Play Time 00:05:18 Cumulative 150.9 hours Start 2022.05.02 @ 02:08:31 End 2022.05.02 @ 02:11:40 Sessions 1 Manual Loads 0 Difficulty Rogue Special Mode None Game No. 236 Rogue 235 Adventurer 0 Explorer 1 Win Type - Total 7 Types 7/0/0/0/0/0/0/0/0 Lore% 60 Gallery% 62 Achievement% 51 Wizard Run 0 Options --------- ASCII 1 Keyboard 0 Movement Vi Keybinds 0 Fullscreen 1 Font 18/SmallcapsGlow Map View 76x50 Tactical HUD 1 Map Filters NONE Filters NONE Steam 1 RUN: c1f7f3f3-494f-454a-b7ba-e58e64a8cc35